fUSD/lending_fUSD_20250208
["ID","MTS","AMOUNT","RATE_DAILY","PERIOD"]
[352286585,1739028647100,-500.0,0.00010135,2]
[352286587,1739028647111,-500.0,0.00010135,2]
[352286589,1739028647120,-547.63,0.00010135,2]
[352286591,1739028647130,-500.0,0.00010135,2]
[352286593,1739028647139,-641.81690736,0.00010135,2]
[352286595,1739028647151,-1223.68,0.00010135,2]
[352286598,1739028647168,-500.0,0.00010135,2]
[352286600,1739028647181,-500.0,0.00010135,2]
[352286603,1739028647195,-500.0,0.00010135,2]
[352286605,1739028647207,-1043.84,0.00010135,2]
[352286607,1739028647219,-500.0,0.00010135,2]
[352286610,1739028647234,-500.0,0.00010135,2]
[352286612,1739028647248,-500.0,0.00010135,2]
[352286614,1739028647261,-500.0,0.00010135,2]
[352286617,1739028647275,-986.77,0.00010135,2]
[352286619,1739028647289,-500.0,0.00010135,2]
[352286621,1739028647304,-500.0,0.00010135,2]
[352286623,1739028647316,-500.0,0.00010135,2]
[352286626,1739028647329,-934.21,0.00010135,2]
[352286628,1739028647342,-500.0,0.00010135,2]
[352286630,1739028647353,-1252.76,0.00010135,2]
[352286632,1739028647367,-500.0,0.00010135,2]
[352286635,1739028647380,-500.0,0.00010135,2]
[352286637,1739028647393,-851.2,0.00010135,2]
[352286639,1739028647406,-983.8,0.00010135,2]
[352286642,1739028647419,-633.99,0.00010135,2]
[352286644,1739028647432,-500.0,0.00010135,2]
[352286646,1739028647445,-500.0,0.00010135,2]
[352286649,1739028647460,-913.56,0.00010135,2]
[352286651,1739028647472,-500.0,0.00010135,2]
[352286654,1739028647487,-500.0,0.00010135,2]
[352286656,1739028647499,-1088.42,0.00010135,2]
[352286658,1739028647511,-947.86,0.00010135,2]
[352286660,1739028647525,-1091.33,0.00010135,2]
[352286663,1739028647539,-500.0,0.00010135,2]
[352286665,1739028647551,-500.0,0.00010135,2]
[352286667,1739028647566,-500.0,0.00010135,2]
[352286669,1739028647579,-1317.62,0.00010135,2]
[352286672,1739028647592,-500.0,0.00010135,2]
[352286674,1739028647603,-787.07,0.00010135,2]
[352286676,1739028647615,-500.0,0.00010135,2]
[352286678,1739028647626,-593.57,0.00010135,2]
[352286680,1739028647637,-500.0,0.00010135,2]
[352286682,1739028647648,-508.17,0.00010135,2]
[352286685,1739028647659,-992.85,0.00010135,2]
[352286687,1739028647672,-2552.46,0.00010135,2]
[352286689,1739028647685,-780.62,0.00010135,2]
[352286691,1739028647696,-548.15,0.00010135,2]
[352286693,1739028647706,-1122.93,0.00010135,2]
[352286695,1739028647716,-1101.79,0.00010135,2]
[352286697,1739028647726,-902.22,0.00010135,2]
[352286700,1739028647738,-657.05,0.00010135,2]
[352286702,1739028647751,-500.0,0.00010135,2]
[352286704,1739028647763,-512.48,0.00010135,2]
[352286706,1739028647774,-500.0,0.00010135,2]
[352286708,1739028647785,-1120.42,0.00010135,2]
[352286711,1739028647795,-336.92,0.00010135,2]
[352286713,1739028647806,-6693.6,0.00010135,2]
[352286715,1739028647818,-741.29,0.00010135,2]
[352286717,1739028647829,-1034.11,0.00010135,2]
[352286719,1739028647841,-675.65,0.00010135,2]
[352286722,1739028647852,-525.81851231,0.00010135,2]
[352286724,1739028647864,-500.0,0.00010135,2]
[352286726,1739028647876,-581.86,0.00010135,2]
[352286728,1739028647888,-500.0,0.00010135,2]
[352286730,1739028647900,-916.73,0.00010135,2]
[352286732,1739028647911,-731.99,0.00010135,2]
[352286735,1739028647922,-1466.25,0.00010135,2]
[352286737,1739028647935,-500.0,0.00010135,2]
[352286739,1739028647947,-500.0,0.00010135,2]
[352286741,1739028647958,-500.0,0.00010135,2]
[352286743,1739028647971,-597.7,0.00010135,2]
[352286745,1739028647983,-500.0,0.00010135,2]
[352286747,1739028647995,-500.0,0.00010135,2]
[352286750,1739028648007,-500.0,0.00010135,2]
[352286752,1739028648020,-500.0,0.00010135,2]
[352286754,1739028648033,-1297.02,0.00010135,2]
[352286756,1739028648046,-500.0,0.00010135,2]
[352286758,1739028648056,-1028.96,0.00010135,2]
[352286760,1739028648068,-3310.98,0.00010135,2]
[352286763,1739028648080,-500.0,0.00010135,2]
[352286765,1739028648093,-500.0,0.00010135,2]
[352286767,1739028648106,-500.0,0.00010135,2]
[352286769,1739028648118,-917.91,0.00010135,2]
[352286772,1739028648135,-511.7,0.00010135,2]
[352286774,1739028648147,-500.0,0.00010135,2]
[352286776,1739028648160,-500.0,0.00010135,2]
[352286778,1739028648172,-643.43,0.00010135,2]
[352286781,1739028648185,-500.0,0.00010135,2]
[352286783,1739028648199,-539.85,0.00010135,2]
[352286785,1739028648212,-3319.49,0.00010135,2]
[352286787,1739028648225,-913.19,0.00010135,2]
[352286790,1739028648238,-500.0,0.00010135,2]
[352286792,1739028648251,-1143.68,0.00010135,2]
[352286794,1739028648263,-994.19,0.00010135,2]
[352286796,1739028648276,-954.06,0.00010135,2]
[352286798,1739028648288,-1144.4,0.00010135,2]
[352286801,1739028648299,-500.0,0.00010135,2]
[352286803,1739028648311,-500.0,0.00010135,2]
[352286805,1739028648325,-2477.27,0.00010135,2]
[352286807,1739028648337,-763.69,0.00010135,2]
[352286809,1739028648350,-500.0,0.00010135,2]
[352286812,1739028648363,-806.5,0.00010135,2]
[352286814,1739028648375,-500.0,0.00010136,2]
[352286816,1739028648388,-500.0,0.00010136,2]
[352286818,1739028648401,-500.0,0.00010136,2]
[352286820,1739028648413,-500.0,0.00010136,2]
[352286822,1739028648426,-500.0,0.00010136,2]
[352286825,1739028648438,-227.60035733,0.00010136,2]
[352286827,1739028648452,-500.0,0.00010136,2]
[352286829,1739028648464,-500.0,0.00010136,2]
[352286831,1739028648476,-500.0,0.00010136,2]
[352286834,1739028648489,-500.0,0.00010136,2]
[352286836,1739028648501,-500.0,0.00010136,2]
[352286838,1739028648512,-500.0,0.00010136,2]
[352286840,1739028648524,-500.0,0.00010136,2]
[352286842,1739028648538,-500.0,0.00010136,2]
[352286844,1739028648549,-589.99464876,0.00010136,2]
[352286846,1739028648562,-512.59283199,0.00010136,2]
[352286849,1739028648575,-500.0,0.00010136,2]
[352286851,1739028648589,-500.0,0.00010136,2]
[352286853,1739028648602,-500.0,0.00010136,2]
[352286855,1739028648615,-500.0,0.00010136,2]
[352286857,1739028648628,-352.45690977,0.00010136,2]
[352286859,1739028648641,-238.52351537,0.00010136,2]
[352286862,1739028648654,-500.0,0.00010136,2]
[352286864,1739028648667,-500.0,0.00010136,2]
[352286866,1739028648680,-500.0,0.00010136,2]
[352286868,1739028648694,-981.79,0.00010136,2]
[352286870,1739028648706,-500.0,0.00010136,2]
[352286872,1739028648720,-1014.37,0.00010136,2]
[352286874,1739028648732,-500.0,0.00010136,2]
[352286876,1739028648745,-1092.78,0.00010136,2]
[352286879,1739028648759,-618.07,0.00010136,2]
[352286881,1739028648775,-506.24,0.00010136,2]
[352286883,1739028648788,-500.0,0.00010136,2]
[352286886,1739028648801,-500.0,0.00010136,2]
[352286888,1739028648813,-1239.48,0.00010136,2]
[352286890,1739028648826,-500.0,0.00010136,2]
[352286892,1739028648839,-1189.9,0.00010136,2]
[352286894,1739028648851,-500.0,0.00010136,2]
[352286896,1739028648863,-1172.45,0.00010136,2]
[352286899,1739028648875,-500.0,0.00010136,2]
[352286901,1739028648887,-500.0,0.00010136,2]
[352286902,1739028648901,-446.09631954,0.00010136,2]
[352286903,1739028648913,-942.36,0.00010136,2]
[352286904,1739028648927,-500.0,0.00010136,2]
[352286905,1739028648939,-500.0,0.00010136,2]
[352286906,1739028648953,-500.0,0.00010136,2]
[352286907,1739028648965,-500.0,0.00010136,2]
[352286908,1739028648978,-639.26,0.00010136,2]
[352286909,1739028648990,-626.98,0.00010136,2]
[352286910,1739028649002,-286.70127432,0.00010136,2]
[352286911,1739028649013,-156.45,0.00010137,2]
[352286913,1739028649026,-158.01,0.00010137,2]
[352286915,1739028649047,-4559.0,0.00010164,2]
[352286917,1739028649059,-154.16148577,0.00010171,2]
[352286919,1739028649070,-439.32935426,0.00010171,2]
[352286921,1739028649082,-308.56127328,0.00010172,2]
[352286923,1739028649093,-500.0,0.00010173,2]
[352286926,1739028649105,-500.0,0.00010173,2]
[352286928,1739028649116,-566.57,0.00010199,2]
[352286930,1739028649127,-154752.97110905,0.00010199,2]
[352286932,1739028649139,-500.0,0.00010199,2]
[352286935,1739028649150,-500.0,0.00010199,2]
[352286937,1739028649161,-500.0,0.00010199,2]
[352286939,1739028649172,-271.33477855,0.00010199,2]
[352286941,1739028649183,-304.34,0.00010199,2]
[352286943,1739028649196,-500.0,0.00010199,2]
[352286945,1739028649207,-500.0,0.00010199,2]
[352286948,1739028649218,-500.0,0.00010199,2]
[352286950,1739028649229,-500.0,0.00010199,2]
[352286952,1739028649240,-500.0,0.00010199,2]
[352286954,1739028649252,-500.0,0.00010199,2]
[352286957,1739028649267,-500.0,0.00010199,2]
[352286959,1739028649278,-643.86884452,0.00010199,2]
[352286961,1739028649290,-2060808.65846874,0.000102,2]
[352286963,1739028649302,-500.0,0.00010271,2]
[352286965,1739028649314,-500.0,0.00010271,2]
[352286968,1739028649326,-500.0,0.00010271,2]
[352286970,1739028649337,-571.8800579,0.00010271,2]
[352286972,1739028649348,-500.0,0.00010271,2]
[352286974,1739028649359,-500.0,0.00010271,2]
[352286976,1739028649370,-509.27102398,0.00010271,2]
[352286978,1739028649381,-500.0,0.00010271,2]
[352286981,1739028649392,-500.0,0.00010271,2]
[352286983,1739028649404,-500.0,0.00010271,2]
[352286985,1739028649415,-500.0,0.00010271,2]
[352286987,1739028649427,-500.0,0.00010271,2]
[352286989,1739028649438,-500.0,0.00010271,2]
[352286991,1739028649449,-562.81148069,0.00010271,2]
[352286994,1739028649460,-502.04143773,0.00010271,2]
[352286996,1739028649472,-500.0,0.00010271,2]
[352286998,1739028649483,-500.0,0.00010271,2]
[352287000,1739028649494,-500.0,0.00010271,2]
[352287002,1739028649505,-500.0,0.00010271,2]
[352287004,1739028649516,-500.0,0.00010271,2]
[352287007,1739028649528,-500.0,0.00010271,2]
[352287009,1739028649539,-551.94,0.00010271,2]
[352287011,1739028649549,-500.0,0.00010271,2]
[352287013,1739028649560,-500.0,0.00010271,2]
[352287015,1739028649575,-500.0,0.00010271,2]
[352287017,1739028649585,-500.0,0.00010271,2]
[352287019,1739028649596,-500.0,0.00010271,2]
[352287021,1739028649607,-500.0,0.00010271,2]
[352287024,1739028649619,-500.0,0.00010271,2]
[352287026,1739028649630,-500.0,0.00010271,2]
[352287028,1739028649641,-500.0,0.00010271,2]
[352287030,1739028649653,-500.0,0.00010271,2]
[352287032,1739028649665,-500.0,0.00010271,2]
[352287034,1739028649677,-507.46219776,0.00010271,2]
[352287036,1739028649687,-500.0,0.00010271,2]
[352287039,1739028649703,-500.0,0.00010271,2]
[352287041,1739028649713,-500.0,0.00010271,2]
[352287043,1739028649725,-500.0,0.00010271,2]
[352287045,1739028649736,-500.0,0.00010271,2]
[352287047,1739028649747,-500.0,0.00010271,2]
[352287049,1739028649758,-500.0,0.00010271,2]
[352287051,1739028649769,-500.0,0.00010271,2]
[352287053,1739028649780,-1172.19,0.00010271,2]
[352287055,1739028649791,-585.94741323,0.00010271,2]
[352287058,1739028649801,-647.21027455,0.00010271,2]
[352287061,1739028649822,-500.0,0.00010271,2]
[352287063,1739028649836,-500.0,0.00010271,2]
[352287066,1739028649848,-437.80617409,0.00010271,2]
[352287068,1739028649860,-500.0,0.00010271,2]
[352287070,1739028649872,-500.0,0.00010271,2]
[352287072,1739028649884,-500.0,0.00010271,2]
[352287075,1739028649896,-500.0,0.00010271,2]
[352287077,1739028649909,-500.0,0.00010271,2]
[352287079,1739028649921,-500.0,0.00010271,2]
[352287082,1739028649933,-500.0,0.00010271,2]
[352287084,1739028649947,-500.0,0.00010271,2]
[352287086,1739028649959,-500.0,0.00010271,2]
[352287126,1739028649971,-500.0,0.00010271,2]
[352287130,1739028650360,-500.0,0.00010271,2]
[352287133,1739028650377,-500.0,0.00010271,2]
[352287135,1739028650388,-500.0,0.00010271,2]
[352287137,1739028650398,-500.0,0.00010271,2]
[352287139,1739028650408,-500.0,0.00010271,2]
[352287141,1739028650417,-500.0,0.00010271,2]
[352287143,1739028650426,-500.0,0.00010271,2]
[352287145,1739028650435,-496.92884152,0.00010271,2]
[352287147,1739028650448,-500.0,0.00010271,2]
[352287149,1739028650457,-500.0,0.00010271,2]
[352287151,1739028650466,-500.0,0.00010271,2]
[352287153,1739028650475,-500.0,0.00010271,2]
[352287155,1739028650484,-578.84092426,0.00010271,2]
[352287157,1739028650493,-2262.317998,0.00010271,2]
[352287159,1739028650504,-500.0,0.00010271,2]
[352287161,1739028650514,-500.0,0.00010271,2]
[352287163,1739028650523,-155.290179,0.00010271,2]
[352287165,1739028650532,-453.6053868,0.00010271,2]
[352287167,1739028650542,-398.48,0.00010271,2]
[352287169,1739028650551,-500.0,0.00010271,2]
[352287171,1739028650561,-500.0,0.00010271,2]
[352287173,1739028650573,-500.0,0.00010271,2]
[352287175,1739028650582,-500.0,0.00010271,2]
[352287177,1739028650591,-500.0,0.00010271,2]
[352287179,1739028650600,-500.0,0.00010271,2]
[352287181,1739028650610,-500.0,0.00010271,2]
[352287183,1739028650619,-500.0,0.00010271,2]
[352287185,1739028650629,-500.0,0.00010271,2]
[352287187,1739028650638,-500.0,0.00010271,2]
[352287189,1739028650647,-1871.601859,0.00010271,2]
[352287191,1739028650658,-500.0,0.00010271,2]
[352287193,1739028650667,-500.0,0.00010271,2]
[352287195,1739028650676,-500.0,0.00010271,2]
[352287197,1739028650685,-500.0,0.00010271,2]
[352287199,1739028650697,-500.0,0.00010271,2]
[352287201,1739028650706,-164.82935765,0.00010271,2]
[352287203,1739028650715,-511.37,0.00010271,2]
[352287205,1739028650725,-500.0,0.00010271,2]
[352287207,1739028650734,-239.71159314,0.00010271,2]
[352287209,1739028650744,-500.0,0.00010271,2]
[352287211,1739028650753,-503.35490683,0.00010271,2]
[352287213,1739028650763,-500.0,0.00010271,2]
[352287215,1739028650772,-500.0,0.00010271,2]
[352287217,1739028650782,-500.0,0.00010271,2]
[352287219,1739028650791,-500.0,0.00010271,2]
[352287221,1739028650800,-500.0,0.00010271,2]
[352287223,1739028650809,-500.0,0.00010271,2]
[352287225,1739028650819,-500.0,0.00010271,2]
[352287227,1739028650829,-500.0,0.00010271,2]
[352287229,1739028650839,-500.0,0.00010271,2]
[352287231,1739028650848,-349.862216,0.00010271,2]
[352287233,1739028650857,-427.90541059,0.00010271,2]
[352287235,1739028650866,-2492.37,0.00010271,2]
[352287237,1739028650876,-500.0,0.00010271,2]
[352287239,1739028650895,-500.0,0.00010271,2]
[352287241,1739028650904,-204.27,0.00010271,2]
[352287244,1739028650913,-500.0,0.00010271,2]
[352287246,1739028650923,-1367.28,0.00010271,2]
[352287247,1739028650933,-500.0,0.00010271,2]
[352287249,1739028650942,-500.0,0.00010271,2]
[352287252,1739028650951,-500.0,0.00010271,2]
[352287254,1739028650960,-500.0,0.00010271,2]
[352287256,1739028650969,-500.0,0.00010271,2]
[352287257,1739028650980,-776.65,0.00010271,2]
[352287259,1739028650990,-500.0,0.00010271,2]
[352287262,1739028651001,-500.0,0.00010271,2]
[352287264,1739028651011,-500.0,0.00010271,2]
[352287266,1739028651020,-2122.12,0.00010271,2]
[352287267,1739028651030,-500.0,0.00010271,2]
[352287269,1739028651041,-500.0,0.00010271,2]
[352287271,1739028651051,-1602.39,0.00010271,2]
[352287273,1739028651062,-973.04,0.00010271,2]
[352287275,1739028651071,-502.79,0.00010271,2]
[352287277,1739028651080,-959.45,0.00010271,2]
[352287279,1739028651089,-1566.62,0.00010271,2]
[352287281,1739028651098,-500.0,0.00010271,2]
[352287283,1739028651107,-1053.69,0.00010271,2]
[352287285,1739028651116,-1572.34,0.00010271,2]
[352287287,1739028651125,-2608.47,0.00010271,2]
[352287289,1739028651134,-621.5,0.00010271,2]
[352287291,1739028651143,-1721.53,0.00010271,2]
[352287293,1739028651152,-1492.82,0.00010271,2]
[352287295,1739028651161,-1137.25,0.00010271,2]
[352287297,1739028651170,-500.0,0.00010271,2]
[352287299,1739028651179,-1422.81,0.00010271,2]
[352287302,1739028651189,-728.42,0.00010271,2]
[352287304,1739028651200,-1340.19,0.00010271,2]
[352287306,1739028651210,-1755.98,0.00010271,2]
[352287308,1739028651219,-2960.07,0.00010271,2]
[352287310,1739028651228,-500.0,0.00010271,2]
[352287312,1739028651237,-681.74,0.00010271,2]
[352287314,1739028651246,-500.0,0.00010271,2]
[352287316,1739028651255,-8641.78,0.00010271,2]
[352287318,1739028651265,-1121.44,0.00010271,2]
[352287320,1739028651274,-1085.56,0.00010271,2]
[352287322,1739028651283,-859.16,0.00010271,2]
[352287324,1739028651293,-500.0,0.00010271,2]
[352287326,1739028651302,-1161.53,0.00010271,2]
[352287328,1739028651311,-1323.4,0.00010271,2]
[352287330,1739028651321,-1515.93,0.00010271,2]
[352287332,1739028651331,-1345.71,0.00010271,2]
[352287334,1739028651340,-505.22067381,0.00010271,2]
[352287336,1739028651350,-1160.6,0.00010271,2]
[352287338,1739028651359,-500.0,0.00010271,2]
[352287340,1739028651368,-1031.19,0.00010271,2]
[352287342,1739028651378,-1853.3,0.00010271,2]
[352287344,1739028651387,-710.67,0.00010271,2]
[352287346,1739028651396,-2653.97,0.00010271,2]
[352287348,1739028651406,-500.0,0.00010271,2]
[352287350,1739028651417,-994.42,0.00010271,2]
[352287352,1739028651426,-1015.6,0.00010271,2]
[352287354,1739028651435,-2237.26,0.00010271,2]
[352287356,1739028651446,-1281.05,0.00010271,2]
[352287358,1739028651455,-1270.9,0.00010271,2]
[352287360,1739028651465,-500.0,0.00010271,2]
[352287362,1739028651474,-1901.34,0.00010271,2]
[352287364,1739028651484,-1845.74,0.00010271,2]
[352287366,1739028651493,-500.0,0.00010271,2]
[352287368,1739028651503,-500.0,0.00010271,2]
[352287370,1739028651512,-1128.45,0.00010271,2]
[352287372,1739028651521,-500.0,0.00010271,2]
[352287374,1739028651531,-1567.88,0.00010271,2]
[352287376,1739028651540,-2346.46,0.00010271,2]
[352287378,1739028651549,-1580.73,0.00010271,2]
[352287380,1739028651559,-1164.35,0.00010271,2]
[352287382,1739028651572,-1616.05,0.00010271,2]
[352287384,1739028651583,-1244.53,0.00010271,2]
[352287386,1739028651593,-500.0,0.00010271,2]
[352287388,1739028651602,-1909.57,0.00010271,2]
[352287390,1739028651611,-724.54,0.00010271,2]
[352287392,1739028651621,-3113.61,0.00010271,2]
[352287394,1739028651630,-2706.3,0.00010271,2]
[352287396,1739028651639,-632.44,0.00010271,2]
[352287398,1739028651649,-500.0,0.00010271,2]
[352287400,1739028651659,-2819.15,0.00010271,2]
[352287402,1739028651667,-1753.39,0.00010271,2]
[352287403,1739028651676,-500.0,0.00010271,2]
[352287404,1739028651685,-1694.87,0.00010271,2]
[352287405,1739028651695,-5975.4,0.00010271,2]
[352287406,1739028651704,-500.0,0.00010271,2]
[352287407,1739028651713,-1212.9,0.00010271,2]
[352287408,1739028651722,-500.0,0.00010271,2]
[352287409,1739028651733,-914.9,0.00010271,2]
[352287410,1739028651743,-4098.16,0.00010271,2]
[352287411,1739028651752,-500.0,0.00010271,2]
[352287412,1739028651762,-2406.98,0.00010271,2]
[352287413,1739028651771,-2459.54,0.00010271,2]
[352287414,1739028651780,-2553.13,0.00010271,2]
[352287415,1739028651789,-500.0,0.00010271,2]
[352287417,1739028651799,-500.0,0.00010271,2]
[352287419,1739028651808,-500.0,0.00010271,2]
[352287421,1739028651818,-2034.32,0.00010271,2]
[352287423,1739028651827,-1134.99,0.00010271,2]
[352287425,1739028651837,-1466.13,0.00010271,2]
[352287427,1739028651846,-2648.42,0.00010271,2]
[352287429,1739028651855,-500.0,0.00010271,2]
[352287431,1739028651865,-956.17,0.00010271,2]
[352287433,1739028651874,-2268.11,0.00010271,2]
[352287435,1739028651884,-1838.22,0.00010271,2]
[352287437,1739028651893,-500.0,0.00010271,2]
[352287439,1739028651902,-500.0,0.00010271,2]
[352287441,1739028651911,-1728.06,0.00010271,2]
[352287443,1739028651921,-2483.22,0.00010271,2]
[352287445,1739028651931,-828.54,0.00010271,2]
[352287447,1739028651940,-500.0,0.00010271,2]
[352287449,1739028651952,-2693.7,0.00010271,2]
[352287451,1739028651962,-1069.72,0.00010271,2]
[352287453,1739028651971,-500.0,0.00010271,2]
[352287455,1739028651981,-500.0,0.00010271,2]
[352287457,1739028651990,-500.0,0.00010271,2]
[352287459,1739028652000,-500.0,0.00010271,2]
[352287461,1739028652009,-1474.86,0.00010271,2]
[352287463,1739028652019,-500.0,0.00010271,2]
[352287465,1739028652028,-509.39,0.00010271,2]
[352287467,1739028652037,-1041.36,0.00010271,2]
[352287469,1739028652047,-971.21,0.00010271,2]
[352287471,1739028652056,-2117.23,0.00010271,2]
[352287473,1739028652066,-500.0,0.00010271,2]
[352287475,1739028652075,-500.0,0.00010271,2]
[352287477,1739028652084,-500.0,0.00010271,2]
[352287479,1739028652094,-500.0,0.00010271,2]
[352287481,1739028652104,-500.0,0.00010271,2]
[352287483,1739028652113,-500.0,0.00010271,2]
[352287485,1739028652123,-500.0,0.00010271,2]
[352287487,1739028652132,-677.08,0.00010271,2]
[352287489,1739028652142,-641.48,0.00010271,2]
[352287491,1739028652151,-2282.73,0.00010271,2]
[352287493,1739028652161,-500.0,0.00010271,2]
[352287495,1739028652171,-1913.7,0.00010271,2]
[352287497,1739028652180,-527.94,0.00010271,2]
[352287499,1739028652190,-1007.06,0.00010271,2]
[352287501,1739028652200,-1449.4,0.00010271,2]
[352287503,1739028652209,-319.63951945,0.00010271,2]
[352287505,1739028652219,-1523.2,0.00010272,2]
[352287507,1739028652228,-500.0,0.00010272,2]
[352287509,1739028652237,-711.38,0.00010272,2]
[352287511,1739028652247,-685.67,0.00010272,2]
[352287513,1739028652256,-2565.19,0.00010272,2]
[352287515,1739028652266,-500.0,0.00010272,2]
[352287517,1739028652275,-500.0,0.00010272,2]
[352287519,1739028652284,-691.85,0.00010272,2]
[352287521,1739028652294,-849.79,0.00010272,2]
[352287523,1739028652303,-500.0,0.00010272,2]
[352287525,1739028652313,-500.0,0.00010272,2]
[352287527,1739028652322,-500.0,0.00010272,2]
[352287529,1739028652332,-500.0,0.00010272,2]
[352287531,1739028652341,-500.0,0.00010272,2]
[352287533,1739028652351,-1346.62,0.00010272,2]
[352287535,1739028652361,-500.0,0.00010272,2]
[352287537,1739028652370,-500.0,0.00010272,2]
[352287538,1739028652380,-641.27,0.00010272,2]
[352287539,1739028652389,-500.0,0.00010272,2]
[352287540,1739028652399,-503.79,0.00010272,2]
[352287541,1739028652410,-500.0,0.00010272,2]
[352287542,1739028652419,-986.82,0.00010272,2]
[352287543,1739028652429,-1151.05,0.00010272,2]
[352287544,1739028652439,-500.0,0.00010272,2]
[352287545,1739028652449,-500.0,0.00010272,2]
[352287546,1739028652460,-500.0,0.00010272,2]
[352287547,1739028652470,-500.0,0.00010272,2]
[352287548,1739028652479,-500.0,0.00010272,2]
[352287549,1739028652489,-500.0,0.00010272,2]
[352287550,1739028652499,-500.0,0.00010272,2]
[352287551,1739028652509,-629.25,0.00010272,2]
[352287552,1739028652518,-500.0,0.00010272,2]
[352287553,1739028652528,-292.37955906,0.00010272,2]
[352287554,1739028652538,-500.0,0.00010272,2]
[352287555,1739028652548,-1089.46,0.00010272,2]
[352287557,1739028652557,-500.0,0.00010272,2]
[352287559,1739028652567,-744.42,0.00010272,2]
[352287561,1739028652579,-500.0,0.00010272,2]
[352287563,1739028652589,-500.0,0.00010272,2]
[352287565,1739028652598,-500.0,0.00010272,2]
[352287568,1739028652608,-1158.94,0.00010272,2]
[352287569,1739028652619,-500.0,0.00010272,2]
[352287571,1739028652628,-500.0,0.00010272,2]
[352287574,1739028652638,-500.0,0.00010272,2]
[352287575,1739028652648,-977.07,0.00010272,2]
[352287577,1739028652658,-885.84,0.00010272,2]
[352287579,1739028652669,-500.0,0.00010272,2]
[352287580,1739028652679,-500.0,0.00010272,2]
[352287581,1739028652688,-575.06,0.00010272,2]
[352287582,1739028652700,-550.7,0.00010272,2]
[352287583,1739028652710,-1066.93,0.00010272,2]
[352287584,1739028652720,-500.0,0.00010272,2]
[352287585,1739028652729,-500.0,0.00010272,2]
[352287586,1739028652740,-916.65,0.00010272,2]
[352287587,1739028652749,-500.0,0.00010272,2]
[352287588,1739028652759,-804.1,0.00010272,2]
[352287589,1739028652768,-500.0,0.00010272,2]
[352287590,1739028652778,-500.0,0.00010272,2]
[352287591,1739028652788,-500.0,0.00010272,2]
[352287592,1739028652798,-500.0,0.00010272,2]
[352287593,1739028652808,-500.0,0.00010272,2]
[352287594,1739028652817,-520.63,0.00010272,2]
[352287595,1739028652827,-500.0,0.00010272,2]
[352287596,1739028652837,-500.0,0.00010272,2]
[352287597,1739028652846,-547.63,0.00010272,2]
[352287598,1739028652856,-500.0,0.00010272,2]
[352287599,1739028652866,-1223.68,0.00010272,2]
[352287600,1739028652875,-500.0,0.00010272,2]
[352287601,1739028652885,-500.0,0.00010272,2]
[352287602,1739028652895,-500.0,0.00010272,2]
[352287603,1739028652904,-1043.84,0.00010272,2]
[352287604,1739028652914,-500.0,0.00010272,2]